[Event "Live Chess"]
[Site "Chess.com"]
[Date "2024.06.02"]
[Round "-"]
[White "Dhaydon19"]
[Black "grillage"]
[Result "1-0"]
[WhiteElo "2678"]
[BlackElo "1859"]
[TimeControl "300"]
[EndTime "17:06:52 PDT"]
[Termination "Dhaydon19 won by resignation"]

1. d3 {[%clk 0:04:54.9]} 1... c5 {[%clk 0:04:50.4]} 2. Nf3 {[%clk 0:04:53.5]}
2... Nc6 {[%clk 0:04:49.9]} 3. g3 {[%clk 0:04:50.3]} 3... g6 {[%clk 0:04:48.3]}
4. Bg2 {[%clk 0:04:49.6]} 4... Bg7 {[%clk 0:04:35.7]} 5. c3 {[%clk 0:04:38.7]}
5... Nf6 {[%clk 0:04:31.2]} 6. O-O {[%clk 0:04:37.4]} 6... O-O {[%clk
0:04:29.5]} 7. Qc2 {[%clk 0:04:33.9]} 7... d6 {[%clk 0:04:26.8]} 8. Nbd2 {[%clk
0:04:33.5]} 8... Rb8 {[%clk 0:04:23.2]} 9. a4 {[%clk 0:04:31.5]} 9... Bd7 {[%clk
0:04:18.7]} 10. Ne4 {[%clk 0:04:29.3]} 10... b6 {[%clk 0:04:13.7]} 11. Rd1
{[%clk 0:04:27.4]} 11... a6 {[%clk 0:04:07.1]} 12. Nxf6+ {[%clk 0:04:25.5]}
12... Bxf6 {[%clk 0:04:05.5]} 13. h3 {[%clk 0:04:25.2]} 13... Qc8 {[%clk
0:04:01.1]} 14. Kh2 {[%clk 0:04:22.8]} 14... Ne5 {[%clk 0:03:54.6]} 15. Nxe5
{[%clk 0:03:55.9]} 15... Bxe5 {[%clk 0:03:52.8]} 16. Bh6 {[%clk 0:03:55.2]}
16... Bg7 {[%clk 0:03:47.4]} 17. Bxg7 {[%clk 0:03:53.8]} 17... Kxg7 {[%clk
0:03:46.7]} 18. d4 {[%clk 0:03:36.5]} 18... cxd4 {[%clk 0:03:39.3]} 19. Rxd4
{[%clk 0:03:34.8]} 19... Bc6 {[%clk 0:03:31.7]} 20. Rc4 {[%clk 0:03:32.3]} 1-0

[Event "Live Chess"]
[Site "Chess.com"]
[Date "2024.06.02"]
[Round "-"]
[White "oscalik"]
[Black "RichardABates"]
[Result "0-1"]
[WhiteElo "2272"]
[BlackElo "2323"]
[TimeControl "300"]
[EndTime "17:07:12 PDT"]
[Termination "RichardABates won on time"]

1. e4 {[%clk 0:04:56.4]} 1... c5 {[%clk 0:04:56.5]} 2. Nf3 {[%clk 0:04:55.2]}
2... d6 {[%clk 0:04:55.3]} 3. d4 {[%clk 0:04:53.9]} 3... cxd4 {[%clk 0:04:53.9]}
4. Nxd4 {[%clk 0:04:53.5]} 4... Nf6 {[%clk 0:04:53]} 5. Nc3 {[%clk 0:04:53.1]}
5... a6 {[%clk 0:04:51.8]} 6. Be2 {[%clk 0:04:51.7]} 6... e5 {[%clk 0:04:50.2]}
7. Nb3 {[%clk 0:04:50.8]} 7... Be7 {[%clk 0:04:46.6]} 8. Be3 {[%clk 0:04:50.1]}
8... Be6 {[%clk 0:04:44.5]} 9. Nd5 {[%clk 0:04:48.3]} 9... Nbd7 {[%clk
0:04:41.2]} 10. Qd3 {[%clk 0:04:46.5]} 10... Bxd5 {[%clk 0:04:38.6]} 11. exd5
{[%clk 0:04:45.4]} 11... O-O {[%clk 0:04:36.7]} 12. c4 {[%clk 0:04:05.3]} 12...
a5 {[%clk 0:04:33]} 13. Rc1 {[%clk 0:03:56.3]} 13... a4 {[%clk 0:04:27.6]} 14.
Nd2 {[%clk 0:03:55.2]} 14... Nc5 {[%clk 0:04:23.4]} 15. Qb1 {[%clk 0:03:51.1]}
15... Nfd7 {[%clk 0:04:12.4]} 16. b4 {[%clk 0:03:43.4]} 16... axb3 {[%clk
0:04:10.4]} 17. axb3 {[%clk 0:03:43]} 17... Bg5 {[%clk 0:04:07.2]} 18. b4 {[%clk
0:03:09.1]} 18... Bxe3 {[%clk 0:03:54.3]} 19. fxe3 {[%clk 0:03:09]} 19... Na4
{[%clk 0:03:50.7]} 20. O-O {[%clk 0:03:03.7]} 20... f5 {[%clk 0:03:41.3]} 21.
Nb3 {[%clk 0:02:55.7]} 21... Qb6 {[%clk 0:03:31.6]} 22. c5 {[%clk 0:02:28]}
22... dxc5 {[%clk 0:03:22.4]} 23. bxc5 {[%clk 0:02:02.4]} 23... Naxc5 {[%clk
0:03:13.4]} 24. Nxc5 {[%clk 0:01:31]} 24... Qxb1 {[%clk 0:03:10.5]} 25. Rxb1
{[%clk 0:01:30.9]} 25... Nxc5 {[%clk 0:03:09.1]} 26. Rfc1 {[%clk 0:01:25.7]}
26... Rac8 {[%clk 0:02:58.5]} 27. Rb5 {[%clk 0:01:21.9]} 27... Ne4 {[%clk
0:02:52.1]} 28. Rxc8 {[%clk 0:00:34.7]} 28... Rxc8 {[%clk 0:02:50.3]} 29. h3
{[%clk 0:00:23]} 29... Nd6 {[%clk 0:02:36]} 30. Rb6 {[%clk 0:00:19.8]} 30... Rd8
{[%clk 0:02:34.5]} 31. Kh2 {[%clk 0:00:18.5]} 31... Kf7 {[%clk 0:02:33]} 32. g3
{[%clk 0:00:17.3]} 32... Ke7 {[%clk 0:02:31.7]} 33. Kg2 {[%clk 0:00:16.8]} 33...
Ra8 {[%clk 0:02:28]} 34. Kf3 {[%clk 0:00:15.1]} 34... Ra2 {[%clk 0:02:24.7]} 35.
Bd1 {[%clk 0:00:11.8]} 35... g5 {[%clk 0:02:17.8]} 36. g4 {[%clk 0:00:10]} 36...
f4 {[%clk 0:02:14.6]} 37. exf4 {[%clk 0:00:08.9]} 37... gxf4 {[%clk 0:02:10.7]}
38. h4 {[%clk 0:00:07.8]} 38... Rd2 {[%clk 0:02:00.9]} 39. Be2 {[%clk
0:00:05.5]} 39... Rxd5 {[%clk 0:01:57.7]} 40. g5 {[%clk 0:00:01.9]} 40... Rd2
{[%clk 0:01:54]} 41. Kf2 {[%clk 0:00:00.7]} 41... e4 {[%clk 0:01:51.3]} 42. Ke1
{[%clk 0:00:00.6]} 42... Ra2 {[%clk 0:01:47.7]} 43. Bg4 {[%clk 0:00:00.5]} 43...
f3 {[%clk 0:01:44.4]} 44. Rb4 {[%clk 0:00:00.4]} 44... Re2+ {[%clk 0:01:37.9]}
0-1

[Event "Live Chess"]
[Site "Chess.com"]
[Date "2024.06.02"]
[Round "-"]
[White "gobbles19"]
[Black "ACM42"]
[Result "1-0"]
[WhiteElo "2271"]
[BlackElo "2148"]
[TimeControl "300"]
[EndTime "17:07:51 PDT"]
[Termination "gobbles19 won by resignation"]

1. e4 {[%clk 0:04:56]} 1... e6 {[%clk 0:04:57.7]} 2. d4 {[%clk 0:04:53.8]} 2...
d5 {[%clk 0:04:56.8]} 3. Nc3 {[%clk 0:04:51.4]} 3... Bb4 {[%clk 0:04:54.3]} 4.
e5 {[%clk 0:04:49.7]} 4... c5 {[%clk 0:04:45.8]} 5. Bd2 {[%clk 0:04:49]} 5...
Ne7 {[%clk 0:04:39]} 6. Nb5 {[%clk 0:04:46.6]} 6... O-O {[%clk 0:04:32.6]} 7.
Bxb4 {[%clk 0:04:34.2]} 7... cxb4 {[%clk 0:04:30.8]} 8. f4 {[%clk 0:04:27]} 8...
Nbc6 {[%clk 0:04:14.6]} 9. Nf3 {[%clk 0:04:24]} 9... f6 {[%clk 0:04:13.7]} 10.
Bd3 {[%clk 0:04:21.4]} 10... f5 {[%clk 0:04:11.6]} 11. O-O {[%clk 0:04:18.4]}
11... a6 {[%clk 0:04:10.7]} 12. Nd6 {[%clk 0:04:17]} 12... Bd7 {[%clk 0:04:10]}
13. Nxb7 {[%clk 0:04:15.5]} 13... Qb6 {[%clk 0:04:04]} 14. Nc5 {[%clk
0:04:12.5]} 14... Ra7 {[%clk 0:03:14.3]} 15. c3 {[%clk 0:04:00.5]} 15... a5
{[%clk 0:03:13.4]} 16. Kh1 {[%clk 0:03:55.3]} 16... Ng6 {[%clk 0:03:11.6]} 17.
Ng5 {[%clk 0:03:50.9]} 17... Re8 {[%clk 0:03:08.8]} 18. Qh5 {[%clk 0:03:43.3]}
18... Nf8 {[%clk 0:03:04.8]} 19. Nxd7 {[%clk 0:03:31.8]} 1-0

[Event "Live Chess"]
[Site "Chess.com"]
[Date "2024.06.02"]
[Round "-"]
[White "Cruiseylee78"]
[Black "TigerTank70"]
[Result "1-0"]
[WhiteElo "1702"]
[BlackElo "2218"]
[TimeControl "300"]
[EndTime "17:08:36 PDT"]
[Termination "Cruiseylee78 won by resignation"]

1. d4 {[%clk 0:04:57.1]} 1... d5 {[%clk 0:04:56.9]} 2. Bf4 {[%clk 0:04:53.3]}
2... h5 {[%clk 0:04:54.1]} 3. Nf3 {[%clk 0:04:36.2]} 3... Nf6 {[%clk 0:04:46.8]}
4. e3 {[%clk 0:04:35]} 4... e6 {[%clk 0:04:23.7]} 5. Bd3 {[%clk 0:04:30.1]} 5...
c5 {[%clk 0:04:21.8]} 6. c3 {[%clk 0:04:24.4]} 6... Nc6 {[%clk 0:04:19.9]} 7.
Nbd2 {[%clk 0:04:21.1]} 7... Qb6 {[%clk 0:04:17.6]} 8. Qc1 {[%clk 0:04:17.3]}
8... c4 {[%clk 0:04:13.3]} 9. Be2 {[%clk 0:04:12.1]} 9... Bd7 {[%clk 0:04:12.5]}
10. O-O {[%clk 0:04:07]} 10... Ne7 {[%clk 0:04:11.6]} 11. Bxc4 {[%clk
0:04:00.9]} 11... Ng6 {[%clk 0:04:02.9]} 12. Bd3 {[%clk 0:03:57.2]} 12... Nxf4
{[%clk 0:04:01]} 13. exf4 {[%clk 0:03:55.1]} 13... h4 {[%clk 0:03:56]} 14. Ng5
{[%clk 0:03:41.2]} 14... Bd6 {[%clk 0:03:51.1]} 15. Ndf3 {[%clk 0:03:36.5]}
15... Rc8 {[%clk 0:03:42.9]} 16. Ne5 {[%clk 0:03:32.6]} 16... Rf8 {[%clk
0:03:29.6]} 17. Nexf7 {[%clk 0:03:28.5]} 17... Qc7 {[%clk 0:03:06.5]} 18. Ne5
{[%clk 0:03:18.1]} 18... Bxe5 {[%clk 0:02:59.3]} 19. fxe5 {[%clk 0:03:14.5]}
19... Ng8 {[%clk 0:02:50.1]} 20. Bg6+ {[%clk 0:03:10.9]} 20... Ke7 {[%clk
0:02:49.3]} 21. Nh7 {[%clk 0:03:06.3]} 21... h3 {[%clk 0:02:37]} 22. Qg5+ {[%clk
0:02:50]} 22... Nf6 {[%clk 0:02:34.9]} 23. exf6+ {[%clk 0:02:40.9]} 23... gxf6
{[%clk 0:02:32.1]} 24. Qh4 {[%clk 0:02:37.6]} 24... hxg2 {[%clk 0:02:27.3]} 25.
Rfe1 {[%clk 0:02:34.4]} 25... Rg8 {[%clk 0:02:15.6]} 26. Bf5 {[%clk 0:02:26.4]}
26... Kd6 {[%clk 0:02:05.9]} 27. Nxf6 {[%clk 0:02:23.1]} 27... Rgf8 {[%clk
0:01:59.5]} 28. Bxe6 {[%clk 0:02:01.8]} 28... Bxe6 {[%clk 0:01:47.7]} 29. Qg3+
{[%clk 0:01:57.4]} 29... Ke7 {[%clk 0:01:43.2]} 30. Nxd5+ {[%clk 0:01:54]} 1-0

[Event "Live Chess"]
[Site "Chess.com"]
[Date "2024.06.02"]
[Round "-"]
[White "NeilDruggan73"]
[Black "CarmelJane"]
[Result "1-0"]
[WhiteElo "1755"]
[BlackElo "2067"]
[TimeControl "300"]
[EndTime "17:08:41 PDT"]
[Termination "NeilDruggan73 won by checkmate"]

1. d4 {[%clk 0:04:56.7]} 1... Nf6 {[%clk 0:04:56.4]} 2. Bg5 {[%clk 0:04:54.3]}
2... e6 {[%clk 0:04:54.4]} 3. e4 {[%clk 0:04:51.7]} 3... h6 {[%clk 0:04:53.7]}
4. Bxf6 {[%clk 0:04:49.1]} 4... Qxf6 {[%clk 0:04:53.6]} 5. c3 {[%clk 0:04:47.8]}
5... b6 {[%clk 0:04:51.1]} 6. Nf3 {[%clk 0:04:44.7]} 6... Bb7 {[%clk 0:04:50.2]}
7. Nbd2 {[%clk 0:04:43.5]} 7... d6 {[%clk 0:04:48.6]} 8. Bc4 {[%clk 0:04:41.5]}
8... Nd7 {[%clk 0:04:47.8]} 9. O-O {[%clk 0:04:38.9]} 9... e5 {[%clk 0:04:47.2]}
10. Re1 {[%clk 0:04:29.7]} 10... Be7 {[%clk 0:04:43.3]} 11. d5 {[%clk 0:04:22]}
11... O-O {[%clk 0:04:40.6]} 12. b4 {[%clk 0:04:20.3]} 12... Qg6 {[%clk
0:04:27.6]} 13. Qa4 {[%clk 0:04:15.9]} 13... Nf6 {[%clk 0:04:22.6]} 14. g3
{[%clk 0:03:45.3]} 14... a5 {[%clk 0:04:12.4]} 15. Nh4 {[%clk 0:03:33.9]} 15...
Qh7 {[%clk 0:04:07]} 16. Nf5 {[%clk 0:03:29.4]} 16... Rfe8 {[%clk 0:04:03.9]}
17. Bb5 {[%clk 0:03:19.9]} 17... axb4 {[%clk 0:04:01.7]} 18. Qxb4 {[%clk
0:03:14.1]} 18... Bc8 {[%clk 0:03:49.6]} 19. Bxe8 {[%clk 0:02:56]} 19... Bxf5
{[%clk 0:03:46.3]} 20. Bc6 {[%clk 0:02:48.9]} 20... Rf8 {[%clk 0:03:22]} 21.
exf5 {[%clk 0:02:46.1]} 21... Qxf5 {[%clk 0:03:21.9]} 22. a4 {[%clk 0:02:19.9]}
22... Ng4 {[%clk 0:03:17.5]} 23. f3 {[%clk 0:01:58.9]} 23... Nf6 {[%clk
0:03:04.1]} 24. Ne4 {[%clk 0:01:54.3]} 24... Nxe4 {[%clk 0:02:58.9]} 25. Qxe4
{[%clk 0:01:51.9]} 25... Qg5 {[%clk 0:02:55.9]} 26. f4 {[%clk 0:01:48.6]} 26...
Qg4 {[%clk 0:02:42.4]} 27. Qe2 {[%clk 0:01:41.7]} 27... Qh3 {[%clk 0:02:40.2]}
28. a5 {[%clk 0:01:33.2]} 28... bxa5 {[%clk 0:02:37.8]} 29. Rxa5 {[%clk
0:01:30.7]} 29... Bf6 {[%clk 0:02:36.9]} 30. Qg2 {[%clk 0:01:19.9]} 30... Qg4
{[%clk 0:02:35.1]} 31. Ra4 {[%clk 0:00:50.3]} 31... exf4 {[%clk 0:02:26.5]} 32.
Rxf4 {[%clk 0:00:46.8]} 32... Qg5 {[%clk 0:02:24.1]} 33. h4 {[%clk 0:00:43.5]}
33... Qg6 {[%clk 0:02:16]} 34. Qf3 {[%clk 0:00:41.4]} 34... Be5 {[%clk
0:02:12.1]} 35. Rg4 {[%clk 0:00:38.7]} 35... Qc2 {[%clk 0:02:06.3]} 36. Re2
{[%clk 0:00:36.4]} 36... Qc1+ {[%clk 0:02:00.8]} 37. Kg2 {[%clk 0:00:35.9]}
37... f5 {[%clk 0:01:59]} 38. Rg6 {[%clk 0:00:32.5]} 38... f4 {[%clk 0:01:53.2]}
39. Bd7 {[%clk 0:00:29.9]} 39... fxg3 {[%clk 0:01:50.4]} 40. Be6+ {[%clk
0:00:28.8]} 40... Kh7 {[%clk 0:01:43]} 41. Qxf8 {[%clk 0:00:25.4]} 41... Kxg6
{[%clk 0:01:35.7]} 42. Qf5# {[%clk 0:00:23.9]} 1-0

[Event "Live Chess"]
[Site "Chess.com"]
[Date "2024.06.02"]
[Round "-"]
[White "Outspanner"]
[Black "KeithArkell"]
[Result "0-1"]
[WhiteElo "1530"]
[BlackElo "2424"]
[TimeControl "300"]
[EndTime "17:09:02 PDT"]
[Termination "KeithArkell won on time"]

1. e4 {[%clk 0:04:56.4]} 1... c6 {[%clk 0:04:59.4]} 2. d4 {[%clk 0:04:53.3]}
2... d5 {[%clk 0:04:58.6]} 3. exd5 {[%clk 0:04:50.2]} 3... cxd5 {[%clk 0:04:58]}
4. Bd3 {[%clk 0:04:49.8]} 4... Nf6 {[%clk 0:04:57.4]} 5. Bf4 {[%clk 0:04:42.4]}
5... Nc6 {[%clk 0:04:56.5]} 6. c3 {[%clk 0:04:40.8]} 6... Bg4 {[%clk 0:04:55.5]}
7. f3 {[%clk 0:04:39.5]} 7... Bh5 {[%clk 0:04:44.9]} 8. g4 {[%clk 0:04:29.8]}
8... Bg6 {[%clk 0:04:43.4]} 9. h4 {[%clk 0:04:23.7]} 9... Bxd3 {[%clk
0:04:41.2]} 10. Qxd3 {[%clk 0:04:22.7]} 10... e6 {[%clk 0:04:38.3]} 11. Ne2
{[%clk 0:04:11.4]} 11... Bd6 {[%clk 0:04:37.4]} 12. Nd2 {[%clk 0:03:56.8]} 12...
Bxf4 {[%clk 0:04:27.8]} 13. Nxf4 {[%clk 0:03:55.3]} 13... Qc7 {[%clk 0:04:26.6]}
14. Qe3 {[%clk 0:03:49.3]} 14... O-O-O {[%clk 0:04:25.3]} 15. O-O-O {[%clk
0:03:47.9]} 15... Rhe8 {[%clk 0:04:23.6]} 16. Nd3 {[%clk 0:03:43.4]} 16... Kb8
{[%clk 0:04:21.7]} 17. g5 {[%clk 0:03:13.5]} 17... Nh5 {[%clk 0:04:18.8]} 18.
Nb3 {[%clk 0:03:05.4]} 18... b6 {[%clk 0:04:16.1]} 19. Ne5 {[%clk 0:02:39]}
19... Nxe5 {[%clk 0:04:13.1]} 20. dxe5 {[%clk 0:02:37.7]} 20... g6 {[%clk
0:04:11.3]} 21. Nd4 {[%clk 0:02:33]} 21... Qc5 {[%clk 0:04:07.6]} 22. Rhe1
{[%clk 0:02:18]} 22... Ng3 {[%clk 0:04:00.4]} 23. Qf4 {[%clk 0:02:00.1]} 23...
Nf5 {[%clk 0:03:57.7]} 24. Nxf5 {[%clk 0:01:55.7]} 24... gxf5 {[%clk 0:03:56.9]}
25. Qd4 {[%clk 0:01:49.3]} 25... Rc8 {[%clk 0:03:55.9]} 26. Qxc5 {[%clk
0:01:41.2]} 26... Rxc5 {[%clk 0:03:54.7]} 27. Rd4 {[%clk 0:01:38.9]} 27... Rec8
{[%clk 0:03:31]} 28. Kd2 {[%clk 0:01:25.8]} 28... b5 {[%clk 0:03:28.3]} 29. Rg1
{[%clk 0:01:00]} 29... a5 {[%clk 0:03:26]} 30. a3 {[%clk 0:00:53.1]} 30... Rc4
{[%clk 0:03:24.2]} 31. Rc1 {[%clk 0:00:25.1]} 31... Kb7 {[%clk 0:03:00.4]} 32.
b3 {[%clk 0:00:21.4]} 32... R4c7 {[%clk 0:02:55.2]} 33. c4 {[%clk 0:00:11.2]}
33... bxc4 {[%clk 0:02:51.3]} 34. bxc4 {[%clk 0:00:09.8]} 34... dxc4 {[%clk
0:02:48.1]} 35. Kc3 {[%clk 0:00:07.6]} 35... Ka6 {[%clk 0:02:40.3]} 36. Rb1
{[%clk 0:00:06.6]} 36... Rb7 {[%clk 0:02:28.5]} 37. Rd6+ {[%clk 0:00:04.4]}
37... Ka7 {[%clk 0:02:27.6]} 38. Rxb7+ {[%clk 0:00:03.5]} 38... Kxb7 {[%clk
0:02:27.1]} 39. Rd7+ {[%clk 0:00:03]} 39... Rc7 {[%clk 0:02:24.8]} 40. Rxc7+
{[%clk 0:00:02.1]} 40... Kxc7 {[%clk 0:02:24.5]} 41. Kxc4 {[%clk 0:00:02]} 41...
Kc6 {[%clk 0:02:24.2]} 42. a4 {[%clk 0:00:00.9]} 42... Kb6 {[%clk 0:02:22.4]}
0-1

[Event "Live Chess"]
[Site "Chess.com"]
[Date "2024.06.02"]
[Round "-"]
[White "MagnersCarlsberg2870"]
[Black "StoreySniper"]
[Result "0-1"]
[WhiteElo "1771"]
[BlackElo "2530"]
[TimeControl "300"]
[EndTime "17:09:08 PDT"]
[Termination "StoreySniper won by resignation"]

1. Nf3 {[%clk 0:04:56.1]} 1... d5 {[%clk 0:04:58.4]} 2. d4 {[%clk 0:04:54.7]}
2... c5 {[%clk 0:04:56.5]} 3. e3 {[%clk 0:04:53.4]} 3... Nc6 {[%clk 0:04:54.7]}
4. c3 {[%clk 0:04:51.7]} 4... e6 {[%clk 0:04:52.2]} 5. Bd3 {[%clk 0:04:50.5]}
5... Nf6 {[%clk 0:04:51.3]} 6. Nbd2 {[%clk 0:04:49.5]} 6... Be7 {[%clk
0:04:35.9]} 7. Qe2 {[%clk 0:04:48.3]} 7... O-O {[%clk 0:04:34.5]} 8. O-O {[%clk
0:04:47.3]} 8... Re8 {[%clk 0:04:33.1]} 9. e4 {[%clk 0:04:46]} 9... dxe4 {[%clk
0:04:32]} 10. Nxe4 {[%clk 0:04:45.2]} 10... Nxe4 {[%clk 0:04:28.8]} 11. Qxe4
{[%clk 0:04:44.3]} 11... g6 {[%clk 0:04:28.4]} 12. Bh6 {[%clk 0:04:42.7]} 12...
Qd5 {[%clk 0:04:22]} 13. Qe2 {[%clk 0:04:36.5]} 13... cxd4 {[%clk 0:04:19.1]}
14. Rad1 {[%clk 0:04:31.8]} 14... Qh5 {[%clk 0:04:15.3]} 15. Bf4 {[%clk
0:04:16.9]} 15... dxc3 {[%clk 0:04:06.6]} 16. bxc3 {[%clk 0:04:15.3]} 16... e5
{[%clk 0:04:02.5]} 17. Bxe5 {[%clk 0:03:46.9]} 17... Bf6 {[%clk 0:03:49.2]} 18.
Bxf6 {[%clk 0:03:36.8]} 18... Rxe2 {[%clk 0:03:47]} 19. Bxe2 {[%clk 0:03:36]}
19... Bg4 {[%clk 0:03:45.1]} 20. Rd6 {[%clk 0:03:22.4]} 20... Re8 {[%clk
0:03:37.8]} 21. Bb5 {[%clk 0:03:11.1]} 21... Bxf3 {[%clk 0:03:31.9]} 22. Bxc6
{[%clk 0:03:08.8]} 22... Bxc6 {[%clk 0:03:29]} 23. Rfd1 {[%clk 0:03:07.9]} 23...
Qf5 {[%clk 0:03:23.8]} 24. Bd4 {[%clk 0:02:54.7]} 24... Qg4 {[%clk 0:03:18.4]}
0-1

[Event "Live Chess"]
[Site "Chess.com"]
[Date "2024.06.02"]
[Round "-"]
[White "TheSmoulderingMaster"]
[Black "booktrunk"]
[Result "1-0"]
[WhiteElo "1765"]
[BlackElo "1476"]
[TimeControl "300"]
[EndTime "17:09:31 PDT"]
[Termination "TheSmoulderingMaster won by resignation"]

1. e4 {[%clk 0:04:57.4]} 1... b6 {[%clk 0:04:40.5]} 2. d4 {[%clk 0:04:35]} 2...
Bb7 {[%clk 0:04:39]} 3. Nc3 {[%clk 0:04:33.3]} 3... h6 {[%clk 0:04:36.7]} 4. Nf3
{[%clk 0:04:32.5]} 4... e6 {[%clk 0:04:35.3]} 5. Bf4 {[%clk 0:04:30.8]} 5... Bb4
{[%clk 0:04:33.5]} 6. Bd3 {[%clk 0:04:28.3]} 6... Nf6 {[%clk 0:04:32.2]} 7. O-O
{[%clk 0:04:11.8]} 7... Bxc3 {[%clk 0:04:28.3]} 8. bxc3 {[%clk 0:04:08.1]} 8...
Nxe4 {[%clk 0:04:27.1]} 9. Bxe4 {[%clk 0:04:01.2]} 9... Bxe4 {[%clk 0:04:24]}
10. Qe2 {[%clk 0:03:45.9]} 10... Bb7 {[%clk 0:04:20.4]} 11. Ne5 {[%clk
0:03:44.5]} 11... Qf6 {[%clk 0:04:13.8]} 12. Bg3 {[%clk 0:03:38.7]} 12... d6
{[%clk 0:04:11]} 13. Nd3 {[%clk 0:03:34.5]} 13... O-O {[%clk 0:04:09]} 14. Rae1
{[%clk 0:03:25.2]} 14... Nd7 {[%clk 0:04:00.6]} 15. Qe3 {[%clk 0:03:23.1]} 15...
Rae8 {[%clk 0:03:57.1]} 16. c4 {[%clk 0:03:20.6]} 16... Qg6 {[%clk 0:03:50.3]}
17. Nf4 {[%clk 0:03:18.2]} 17... Qf6 {[%clk 0:03:46.2]} 18. Nh5 {[%clk 0:03:14]}
18... Qg5 {[%clk 0:03:44.2]} 19. Nf4 {[%clk 0:03:11.5]} 19... Nf6 {[%clk
0:03:36.8]} 20. Qa3 {[%clk 0:03:03.2]} 20... a5 {[%clk 0:03:32.1]} 21. c5 {[%clk
0:02:59.6]} 21... h5 {[%clk 0:03:26.2]} 22. h4 {[%clk 0:02:56]} 22... Qh6 {[%clk
0:03:19.3]} 23. cxb6 {[%clk 0:02:51.5]} 23... cxb6 {[%clk 0:03:17]} 24. Qxd6
{[%clk 0:02:50.4]} 24... Ne4 {[%clk 0:03:11.7]} 25. Qxb6 {[%clk 0:02:46.5]}
25... Nxg3 {[%clk 0:03:09.9]} 26. fxg3 {[%clk 0:02:45.4]} 26... Rb8 {[%clk
0:03:07.9]} 27. Qxa5 {[%clk 0:02:40.8]} 27... Qh7 {[%clk 0:03:02.5]} 28. Nxh5
{[%clk 0:02:38.6]} 28... Ra8 {[%clk 0:02:51.9]} 29. Qg5 {[%clk 0:02:37.2]} 29...
f6 {[%clk 0:02:48.5]} 30. Rxf6 {[%clk 0:02:33]} 30... Rxf6 {[%clk 0:02:42.4]}
31. Nxf6+ {[%clk 0:02:31.6]} 1-0

[Event "Live Chess"]
[Site "Chess.com"]
[Date "2024.06.02"]
[Round "-"]
[White "Plato_77"]
[Black "Crowded_House"]
[Result "0-1"]
[WhiteElo "1297"]
[BlackElo "1726"]
[TimeControl "300"]
[EndTime "17:09:44 PDT"]
[Termination "Crowded_House won on time"]

1. d4 {[%clk 0:04:55.9]} 1... e6 {[%clk 0:04:58.1]} 2. Bf4 {[%clk 0:04:54]} 2...
d5 {[%clk 0:04:56.7]} 3. Nf3 {[%clk 0:04:50.3]} 3... Bd6 {[%clk 0:04:56.1]} 4.
Bxd6 {[%clk 0:04:48.4]} 4... Qxd6 {[%clk 0:04:54.8]} 5. e3 {[%clk 0:04:47.6]}
5... Nf6 {[%clk 0:04:53]} 6. c4 {[%clk 0:04:43.3]} 6... dxc4 {[%clk 0:04:48]} 7.
Bxc4 {[%clk 0:04:43.2]} 7... O-O {[%clk 0:04:45.9]} 8. O-O {[%clk 0:04:41.6]}
8... Nbd7 {[%clk 0:04:42.3]} 9. Nc3 {[%clk 0:04:37.3]} 9... a6 {[%clk 0:04:40]}
10. Qc2 {[%clk 0:04:34.4]} 10... Nb6 {[%clk 0:04:38.1]} 11. Bd3 {[%clk 0:04:32]}
11... Bd7 {[%clk 0:04:28.8]} 12. Ne4 {[%clk 0:04:03.9]} 12... Nxe4 {[%clk
0:04:06.4]} 13. Bxe4 {[%clk 0:04:03.8]} 13... Bc6 {[%clk 0:04:01.6]} 14. Bxh7+
{[%clk 0:04:01.4]} 14... Kh8 {[%clk 0:04:00.1]} 15. Be4 {[%clk 0:03:58.4]} 15...
Bxe4 {[%clk 0:03:57.7]} 16. Qxe4 {[%clk 0:03:58.3]} 16... Qd5 {[%clk 0:03:50.9]}
17. Qh4+ {[%clk 0:03:55.9]} 17... Kg8 {[%clk 0:03:40.5]} 18. Ng5 {[%clk
0:03:53.8]} 18... Qf5 {[%clk 0:03:36.2]} 19. f4 {[%clk 0:03:19]} 19... f6 {[%clk
0:03:21.6]} 20. Nf3 {[%clk 0:03:06.9]} 20... Nd5 {[%clk 0:03:17.9]} 21. Rfe1
{[%clk 0:02:47.1]} 21... Qh7 {[%clk 0:02:56.6]} 22. Qf2 {[%clk 0:02:37]} 22...
Nb4 {[%clk 0:02:51.3]} 23. Red1 {[%clk 0:02:10.3]} 23... Nd5 {[%clk 0:02:32.4]}
24. Rac1 {[%clk 0:01:59.6]} 24... c6 {[%clk 0:02:30.6]} 25. g3 {[%clk
0:00:52.6]} 25... Nb4 {[%clk 0:02:21.7]} 26. a3 {[%clk 0:00:49.9]} 26... Nd3
{[%clk 0:02:17.7]} 27. Rxd3 {[%clk 0:00:40.4]} 27... Qxd3 {[%clk 0:02:15.8]} 28.
g4 {[%clk 0:00:39.2]} 28... Kf7 {[%clk 0:02:07.1]} 29. g5 {[%clk 0:00:32.4]}
29... Rh8 {[%clk 0:02:00.6]} 30. f5 {[%clk 0:00:23.2]} 30... Qxf5 {[%clk
0:01:55.1]} 31. gxf6 {[%clk 0:00:19.5]} 31... Qxf6 {[%clk 0:01:51.7]} 32. Ne5+
{[%clk 0:00:14.1]} 32... Ke7 {[%clk 0:01:43]} 33. Qg3 {[%clk 0:00:13.1]} 33...
Rh5 {[%clk 0:01:29.9]} 34. Ng6+ {[%clk 0:00:05.1]} 34... Kd7 {[%clk 0:01:22.1]}
35. Rf1 {[%clk 0:00:03.1]} 35... Rg5 {[%clk 0:01:18.6]} 36. Ne5+ {[%clk
0:00:02.1]} 36... Ke7 {[%clk 0:01:13.5]} 37. Ng4 {[%clk 0:00:02]} 37... Qg6
{[%clk 0:01:09.3]} 38. h3 {[%clk 0:00:00.5]} 38... Rxg4 {[%clk 0:01:06.6]} 0-1